[Event "10th Uppsala Young Champions 2023"]
[Site "Uppsala"]
[Date "2023.10.30"]
[Round "6.10"]
[White "Ostensson, Julia"]
[Black "Morell, Oscar"]
[Result "1/2-1/2"]
[ECO "A07"]
[WhiteElo "1878"]
[BlackElo "1942"]
[Annotator "NA RC"]
[PlyCount "79"]
[EventDate "2023.10.27"]
[EventType "swiss"]
[EventCountry "SWE"]
[SourceTitle "playchess.com"]
[Source "ChessBase"]
[SourceQuality "1"]
[TimeControl "5400+30"]

1. Nf3 {[%emt 0:00:04]} c5 {[%emt 0:00:12]} 2. g3 {[%emt 0:00:11]} Nc6 {[%emt 0:00:23]} 3. Bg2 {[%emt 0:00:21]} g6 {[%emt 0:00:18]} 4. O-O {[%emt 0:00:22]} Bg7 {[%emt 0:01:49]} 5. d3 {[%emt 0:00:16]} e5 {[%emt 0:00:16]} 6. e4 {[%emt 0:02:29]} Nge7 {[%emt 0:00:29]} 7. c3 {[%emt 0:07:52]} d5 {[%emt 0:08:26]} 8. Nbd2 {[%emt 0:02:24]} O-O {[%emt 0:01:09]} 9. Qe2 {[%emt 0:07:40]} d4 {[%emt 0:09:10]} 10. cxd4 {[%emt 0:00:43]} Nxd4 {[%emt 0:02:06]} 11. Nxd4 {[%emt 0:00:17]} Qxd4 {[%emt 0:00:23]} 12. Nb3 {[%emt 0:03:23]} Qd6 {[%emt 0:00:53]} 13. Be3 {[%emt 0:01:28]} b6 {[%emt 0:00:28]} 14. f4 {[%emt 0:00:46]} Ba6 {[%emt 0:10:26]} 15. Rfd1 {[%emt 0:02:05]} Rad8 {[%emt 0:01:09]} 16. Bf1 {[%emt 0:01:11]} Nc6 {[%emt 0:06:16]} 17. a3 {[%emt 0:02:51]} Qf6 {[%emt 0:10:57]} 18. Rd2 {[%emt 0:01:22]} Rd6 {[%emt 0:01:55]} 19. Rad1 {[%emt 0:01:42]} Rfd8 {[%emt 0:00:37]} 20. Qf2 {[%emt 0:03:56]} Qe6 {[%emt 0:03:27]} 21. Nc1 {[%emt 0:06:28]} exf4 {[%emt 0:02:45]} 22. gxf4 {[%emt 0:01:53]} Qg4+ {[%emt 0:02:21]} 23. Kh1 {[%emt 0:05:54]} Bd4 {[%emt 0:02:02]} 24. Ne2 {[%emt 0:06:48]} Bxe3 {[%emt 0:04:17]} 25. Qxe3 {[%emt 0:00:06]} Nd4 {[%emt 0:01:35]} 26. Nxd4 {[%emt 0:16:09]} cxd4 {[%emt 0:05:20]} 27. Qg3 {[%emt 0:07:37]} Qxg3 {[%emt 0:00:25]} 28. hxg3 {[%emt 0:00:02]} Rc8 {[%emt 0:00:22]} 29. Kg2 {[%emt 0:01:33]} Rdc6 {[%emt 0:01:20]} 30. Kf2 {[%emt 0:00:13]} Bb5 {[%emt 0:02:24]} 31. Re1 {[%emt 0:01:13]} Rc2 {[%emt 0:02:21]} 32. Ree2 {[%emt 0:00:39]} Rxd2 {[%emt 0:01:44]} 33. Rxd2 {[%emt 0:00:02]} Ba6 {[%emt 0:01:51]} 34. Ke2 {[%emt 0:03:04]} Rc1 {[%emt 0:01:30]} 35. Bg2 {[%emt 0:01:15]} Bb7 {[%emt 0:00:40]} 36. Rd1 {[%emt 0:00:15]} Rc2+ {[%emt 0:00:03]} 37. Rd2 {[%emt 0:00:07]} Rc1 {[%emt 0:00:04]} 38. Rd1 {[%emt 0:05:58]} Rc2+ {[%emt 0:00:03]} 39. Rd2 {[%emt 0:00:08]} Rc1 {[%emt 0:00:05]} 40. Rd1 {[%emt 0:09:43]} 1/2-1/2

[Event "10th Uppsala Young Champions 2023"]
[Site "Uppsala"]
[Date "2023.10.30"]
[Round "6.11"]
[White "Frank, Anton"]
[Black "Harish, Neeraj"]
[Result "0-1"]
[ECO "E73"]
[WhiteElo "1997"]
[BlackElo "2076"]
[Annotator "NA RC"]
[PlyCount "146"]
[EventDate "2023.10.27"]
[EventType "swiss"]
[EventCountry "SWE"]
[SourceTitle "playchess.com"]
[Source "ChessBase"]
[SourceQuality "1"]
[TimeControl "5400+30"]

1. d4 {[%emt 0:00:01]} Nf6 {[%emt 0:00:29]} 2. c4 {[%emt 0:00:12]} g6 {[%emt 0:00:03]} 3. h4 {[%emt 0:00:05]} Bg7 {[%emt 0:01:44]} 4. Nc3 {[%emt 0:00:09]} c5 {[%emt 0:01:16]} 5. d5 {[%emt 0:00:17]} d6 {[%emt 0:00:06]} 6. e4 {[%emt 0:00:12]} O-O {[%emt 0:02:26]} 7. Be2 {[%emt 0:00:16]} e6 {[%emt 0:03:23]} 8. h5 {[%emt 0:00:09]} exd5 {[%emt 0:04:04]} 9. exd5 {[%emt 0:00:12]} Nbd7 {[%emt 0:03:59]} 10. h6 {[%emt 0:07:15]} Bh8 {[%emt 0:00:16]} 11. Bg5 {[%emt 0:01:31]} Re8 {[%emt 0:09:11]} 12. Kf1 {[%emt 0:02:16]} Qb6 {[%emt 0:04:52]} 13. b3 {[%emt 0:01:39]} Ne4 {[%emt 0:03:37]} 14. Nxe4 {[%emt 0:00:21]} Rxe4 {[%emt 0:00:17]} 15. Rc1 {[%emt 0:10:13]} Ne5 {[%emt 0:05:41]} 16. Rh4 {[%emt 0:03:40]} f5 {[%emt 0:11:59]} 17. Qc2 {[%emt 0:05:55]} Rxh4 {[%emt 0:04:24]} 18. Bxh4 {[%emt 0:00:06]} Bd7 {[%emt 0:00:07]} 19. Re1 {[%emt 0:05:31]} Re8 {[%emt 0:03:03]} 20. Bd1 {[%emt 0:03:17]} Qc7 {[%emt 0:02:15]} 21. Nh3 {[%emt 0:07:15]} Qc8 {[%emt 0:03:15]} 22. Qd2 {[%emt 0:15:48]} Nf7 {[%emt 0:00:43]} 23. Be7 {[%emt 0:07:55]} Be5 {[%emt 0:02:59]} 24. Bh4 {[%emt 0:00:09]} f4 {[%emt 0:07:14]} 25. Ng5 {[%emt 0:00:23]} Nxh6 {[%emt 0:02:38]} 26. Ne4 {[%emt 0:01:03]} Nf5 {[%emt 0:10:31]} 27. Bg5 {[%emt 0:01:24]} Rf8 {[%emt 0:00:58]} 28. Bxf4 {[%emt 0:01:23]} b5 {[%emt 0:02:26]} 29. Bxe5 {[%emt 0:02:39]} dxe5 {[%emt 0:00:09]} 30. Qg5 {[%emt 0:01:17]} Kg7 {[%emt 0:00:39]} 31. Ng3 {[%emt 0:02:28]} bxc4 {[%emt 0:01:03]} 32. bxc4 {[%emt 0:00:31]} Rf7 {[%emt 0:02:07]} 33. Rxe5 {[%emt 0:02:24]} Qb8 {[%emt 0:00:11]} 34. Nxf5+ {[%emt 0:03:45]} Bxf5 {[%emt 0:00:07]} 35. Qe3 {[%emt 0:01:18]} Qb1 {[%emt 0:00:48]} 36. Ke1 {[%emt 0:00:59]} Bc2 {[%emt 0:00:19]} 37. Qe2 {[%emt 0:01:03]} Bxd1 {[%emt 0:00:42]} 38. Qxd1 {[%emt 0:00:10]} Qb4+ {[%emt 0:00:07]} 39. Qd2 {[%emt 0:00:20]} Qxc4 {[%emt 0:00:36]} 40. d6 {[%emt 0:00:57]} Rb7 {[%emt 0:02:37]} 41. Re7+ {[%emt 0:04:54]} Rxe7+ {[%emt 0:00:12]} 42. dxe7 {[%emt 0:00:05]} Qe4+ {[%emt 0:00:13]} 43. Kf1 {[%emt 0:01:27]} Qxe7 {[%emt 0:00:17]} 44. Qc3+ {[%emt 0:00:08]} Kg8 {[%emt 0:00:42]} 45. Qc4+ {[%emt 0:00:14]} Kf8 {[%emt 0:00:26]} 46. Qc3 {[%emt 0:00:53]} Ke8 {[%emt 0:00:17]} 47. Qc4 {[%emt 0:01:05]} Qd6 {[%emt 0:01:43]} 48. Qg8+ {[%emt 0:00:33]} Kd7 {[%emt 0:00:11]} 49. Qxh7+ {[%emt 0:00:10]} Kc6 {[%emt 0:00:04]} 50. g3 {[%emt 0:00:25]} Kb6 {[%emt 0:00:24]} 51. Qf7 {[%emt 0:00:40]} Qd3+ {[%emt 0:00:23]} 52. Kg1 {[%emt 0:01:03]} c4 {[%emt 0:00:10]} 53. Qe6+ {[%emt 0:01:00]} Ka5 {[%emt 0:00:15]} 54. Qc6 {[%emt 0:01:46]} Kb4 {[%emt 0:00:33]} 55. Qb7+ {[%emt 0:01:07]} Ka3 {[%emt 0:00:08]} 56. Qxa7+ {[%emt 0:01:25]} Kb2 {[%emt 0:00:05]} 57. a4 {[%emt 0:01:33]} c3 {[%emt 0:00:30]} 58. Qb6+ {[%emt 0:00:10]} Ka1 {[%emt 0:00:26]} 59. Qf6 {[%emt 0:00:15]} Qb1+ {[%emt 0:01:18]} 60. Kh2 {[%emt 0:00:43]} Qb2 {[%emt 0:00:04]} 61. Qxg6 {[%emt 0:03:13]} c2 {[%emt 0:00:15]} 62. Qf5 {[%emt 0:01:27]} c1=Q {[%emt 0:00:18]} 63. g4 {[%emt 0:00:10]} Qcc2 {[%emt 0:00:05]} 64. Qxc2 {[%emt 0:00:17]} Qxc2 {[%emt 0:00:06]} 65. Kg3 {[%emt 0:00:04]} Qxa4 {[%emt 0:00:05]} 66. f4 {[%emt 0:00:06]} Qd7 {[%emt 0:00:25]} 67. Kh4 {[%emt 0:00:22]} Qh7+ {[%emt 0:00:06]} 68. Kg5 {[%emt 0:00:06]} Qg7+ {[%emt 0:00:04]} 69. Kf5 {[%emt 0:00:07]} Kb2 {[%emt 0:00:05]} 70. g5 {[%emt 0:00:05]} Kc3 {[%emt 0:00:03]} 71. g6 {[%emt 0:00:05]} Kd4 {[%emt 0:00:04]} 72. Kg5 {[%emt 0:00:05]} Kd5 {[%emt 0:00:08]} 73. f5 {[%emt 0:00:11]} Ke5 {[%emt 0:00:07]} 0-1

[Event "10th Uppsala Young Champions 2023"]
[Site "Uppsala"]
[Date "2023.10.31"]
[Round "7.1"]
[White "Gavrilescu, David"]
[Black "Falkevall, Axel"]
[Result "0-1"]
[ECO "E61"]
[WhiteElo "2534"]
[BlackElo "2280"]
[Annotator "RC"]
[PlyCount "96"]
[EventDate "2023.10.27"]
[EventType "swiss"]
[EventCountry "SWE"]
[SourceTitle "playchess.com"]
[Source "ChessBase"]
[SourceQuality "1"]
[TimeControl "5400+30"]

1. Nf3 {[%emt 0:00:23]} Nf6 {[%emt 0:00:17]} 2. c4 {[%emt 0:00:23]} g6 {[%emt 0:00:42]} 3. d4 {[%emt 0:00:13]} Bg7 {[%emt 0:00:08]} 4. e3 {[%emt 0:00:25]} O-O {[%emt 0:00:26]} 5. h3 {[%emt 0:00:19]} d6 {[%emt 0:01:18]} 6. Nc3 {[%emt 0:00:31]} Nbd7 {[%emt 0:01:46]} 7. Be2 {[%emt 0:00:37]} e5 {[%emt 0:00:27]} 8. O-O {[%emt 0:00:36]} Re8 {[%emt 0:00:58]} 9. Qc2 {[%emt 0:00:31]} Qe7 {[%emt 0:03:05]} 10. b4 {[%emt 0:01:05]} e4 {[%emt 0:01:43]} 11. Nh2 {[%emt 0:04:54]} h5 {[%emt 0:03:10]} 12. a4 {[%emt 0:01:43]} Nf8 {[%emt 0:01:23]} 13. a5 {[%emt 0:04:34]} N8h7 {[%emt 0:06:45]} 14. Bb2 {[%emt 0:07:11]} Bf5 {[%emt 0:04:17]} 15. Rfd1 {[%emt 0:06:13]} Ng5 {[%emt 0:04:31]} 16. Bf1 {[%emt 0:02:52]} Bh6 {[%emt 0:06:12]} 17. a6 {[%emt 0:05:34]} b6 {[%emt 0:01:03]} 18. d5 {[%emt 0:02:00]} Ngh7 {[%emt 0:10:41]} 19. Nb5 {[%emt 0:10:54]} g5 {[%emt 0:02:04]} 20. Qc3 {[%emt 0:05:18]} Bg7 {[%emt 0:10:14]} 21. c5 {[%emt 0:02:27]} Red8 {[%emt 0:07:14]} 22. cxd6 {[%emt 0:08:43]} cxd6 {[%emt 0:00:05]} 23. Rac1 {[%emt 0:03:55]} Rdc8 {[%emt 0:03:06]} 24. Qd2 {[%emt 0:03:27]} g4 {[%emt 0:01:55]} 25. Rc6 {[%emt 0:02:49]} Rxc6 {[%emt 0:05:27]} 26. dxc6 {[%emt 0:00:02]} d5 {[%emt 0:00:28]} 27. hxg4 {[%emt 0:01:47]} hxg4 {[%emt 0:00:29]} 28. Be2 {[%emt 0:00:22]} Be6 {[%emt 0:02:00]} 29. Be5 {[%emt 0:01:28]} Ng5 {[%emt 0:01:32]} 30. Qc3 {[%emt 0:02:01]} Nf3+ {[%emt 0:03:54]} 31. Bxf3 {[%emt 0:18:54]} gxf3 {[%emt 0:00:57]} 32. Bd6 {[%emt 0:01:09]} Qd8 {[%emt 0:01:04]} 33. c7 {[%emt 0:01:03]} Qd7 {[%emt 0:00:15]} 34. Be5 {[%emt 0:00:14]} Ne8 {[%emt 0:06:31]} 35. Bxg7 {[%emt 0:00:03]} Nxg7 {[%emt 0:00:06]} 36. Nd4 {[%emt 0:00:20]} Rc8 {[%emt 0:00:34]} 37. Rc1 {[%emt 0:01:51]} Ne8 {[%emt 0:00:27]} 38. Nc6 {[%emt 0:01:04]} Rxc7 {[%emt 0:04:06]} 39. gxf3 {[%emt 0:00:08]} f6 {[%emt 0:02:58]} 40. Kh1 {[%emt 0:00:40]} Kh8 {[%emt 0:00:22]} 41. b5 {[%emt 0:00:30]} Qh7 {[%emt 0:01:31]} 42. Rg1 {[%emt 0:01:19]} Qh6 {[%emt 0:00:37]} 43. f4 {[%emt 0:00:57]} Rh7 {[%emt 0:00:45]} 44. Rg2 {[%emt 0:00:18]} Bh3 {[%emt 0:00:23]} 45. Rg3 {[%emt 0:00:35]} Bg4 {[%emt 0:00:26]} 46. Kg1 {[%emt 0:00:35]} Qxh2+ {[%emt 0:00:21]} 47. Kf1 {[%emt 0:00:00]} Qh1+ {[%emt 0:00:19]} 48. Rg1 {[%emt 0:00:03]} Qxg1+ {[%emt 0:00:51]} 0-1

[Event "10th Uppsala Young Champions 2023"]
[Site "Uppsala"]
[Date "2023.10.31"]
[Round "7.2"]
[White "Sorensen, Hampus"]
[Black "Domalchuk-Jonasson, Aleksandr"]
[Result "1-0"]
[ECO "E04"]
[WhiteElo "2470"]
[BlackElo "2392"]
[Annotator "RC"]
[PlyCount "115"]
[EventDate "2023.10.27"]
[EventType "swiss"]
[EventCountry "SWE"]
[SourceTitle "playchess.com"]
[Source "ChessBase"]
[SourceQuality "1"]
[TimeControl "5400+30"]

1. Nf3 {[%emt 0:01:19]} d5 {[%emt 0:00:26]} 2. g3 {[%emt 0:00:10]} c5 {[%emt 0:01:27]} 3. Bg2 {[%emt 0:00:23]} Nc6 {[%emt 0:00:04]} 4. d4 {[%emt 0:00:51]} Nf6 {[%emt 0:03:40]} 5. O-O {[%emt 0:00:41]} e6 {[%emt 0:00:15]} 6. c4 {[%emt 0:00:25]} dxc4 {[%emt 0:00:06]} 7. Ne5 {[%emt 0:00:48]} Bd7 {[%emt 0:08:33]} 8. Nxc4 {[%emt 0:01:13]} cxd4 {[%emt 0:00:55]} 9. Bf4 {[%emt 0:00:13]} Be7 {[%emt 0:09:51]} 10. Nd6+ {[%emt 0:00:30]} Bxd6 {[%emt 0:03:02]} 11. Bxd6 {[%emt 0:00:07]} e5 {[%emt 0:00:41]} 12. Na3 {[%emt 0:14:53]} Rc8 {[%emt 0:02:11]} 13. Qa4 {[%emt 0:10:07]} a6 {[%emt 0:13:14]} 14. Rfc1 {[%emt 0:06:35]} e4 {[%emt 0:03:11]} 15. Bc5 {[%emt 0:02:48]} Be6 {[%emt 0:15:53]} 16. Rd1 {[%emt 0:09:49]} Qd7 {[%emt 0:05:58]} 17. Nc2 {[%emt 0:08:17]} Ne5 {[%emt 0:12:07]} 18. Qxd4 {[%emt 0:00:27]} Qxd4 {[%emt 0:00:12]} 19. Bxd4 {[%emt 0:00:06]} Rxc2 {[%emt 0:00:22]} 20. Bxe5 {[%emt 0:00:05]} O-O {[%emt 0:05:50]} 21. Bc3 {[%emt 0:14:20]} Rxe2 {[%emt 0:01:22]} 22. Rac1 {[%emt 0:01:24]} e3 {[%emt 0:09:58]} 23. fxe3 {[%emt 0:01:30]} Bxa2 {[%emt 0:00:36]} 24. Bxb7 {[%emt 0:02:11]} Rxe3 {[%emt 0:00:52]} 25. Bxa6 {[%emt 0:00:39]} Re6 {[%emt 0:00:18]} 26. Bf1 {[%emt 0:01:25]} Bb3 {[%emt 0:00:35]} 27. Re1 {[%emt 0:00:47]} Rb8 {[%emt 0:00:32]} 28. Rxe6 {[%emt 0:00:39]} Bxe6 {[%emt 0:00:16]} 29. Be5 {[%emt 0:01:23]} Rb6 {[%emt 0:00:51]} 30. Ra1 {[%emt 0:01:06]} Kf8 {[%emt 0:01:26]} 31. Ra8+ {[%emt 0:00:25]} Ke7 {[%emt 0:00:41]} 32. Ra7+ {[%emt 0:05:11]} Nd7 {[%emt 0:00:21]} 33. Bd4 {[%emt 0:01:17]} Rb8 {[%emt 0:00:14]} 34. b4 {[%emt 0:00:35]} Kd6 {[%emt 0:00:26]} 35. b5 {[%emt 0:00:19]} g5 {[%emt 0:00:35]} 36. Ra6+ {[%emt 0:01:49]} Ke7 {[%emt 0:00:52]} 37. Bb2 {[%emt 0:01:47]} h5 {[%emt 0:00:28]} 38. Ba3+ {[%emt 0:00:12]} Kf6 {[%emt 0:00:27]} 39. Bb2+ {[%emt 0:03:03]} Ke7 {[%emt 0:00:11]} 40. Ra7 {[%emt 0:00:03]} Kd6 {[%emt 0:00:38]} 41. Bc1 {[%emt 0:00:58]} f6 {[%emt 0:00:48]} 42. Ba3+ {[%emt 0:00:31]} Kd5 {[%emt 0:00:20]} 43. Rc7 {[%emt 0:03:18]} Ke5 {[%emt 0:00:33]} 44. Rc6 {[%emt 0:00:32]} Rb6 {[%emt 0:00:37]} 45. Bb2+ {[%emt 0:00:53]} Ke4 {[%emt 0:00:30]} 46. Rxb6 {[%emt 0:00:29]} Nxb6 {[%emt 0:00:01]} 47. Bxf6 {[%emt 0:00:08]} Kf5 {[%emt 0:00:42]} 48. Bd4 {[%emt 0:03:04]} Nc4 {[%emt 0:00:05]} 49. Bd3+ {[%emt 0:00:36]} Kg4 {[%emt 0:00:04]} 50. Be2+ {[%emt 0:01:03]} Kh3 {[%emt 0:00:22]} 51. Bf1+ {[%emt 0:01:04]} Kg4 {[%emt 0:00:01]} 52. b6 {[%emt 0:01:42]} Nd6 {[%emt 0:00:22]} 53. Be2+ {[%emt 0:00:37]} Kh3 {[%emt 0:00:06]} 54. Bxh5 {[%emt 0:00:19]} Bd5 {[%emt 0:00:43]} 55. Be2 {[%emt 0:00:41]} Bg2 {[%emt 0:02:33]} 56. Be3 {[%emt 0:01:03]} Nf7 {[%emt 0:00:20]} 57. Bf1 {[%emt 0:00:41]} Bxf1 {[%emt 0:00:05]} 58. b7 {[%emt 0:00:03]} 1-0

[Event "10th Uppsala Young Champions 2023"]
[Site "Uppsala"]
[Date "2023.10.31"]
[Round "7.3"]
[White "Briem, Stephan"]
[Black "Stefansson, Vignir Vatnar"]
[Result "1-0"]
[ECO "B00"]
[WhiteElo "2144"]
[BlackElo "2484"]
[Annotator "RC"]
[PlyCount "109"]
[EventDate "2023.10.27"]
[EventType "swiss"]
[EventCountry "SWE"]
[SourceTitle "playchess.com"]
[Source "ChessBase"]
[SourceQuality "1"]
[TimeControl "5400+30"]

1. d4 {[%emt 0:00:02]} a6 {[%emt 0:00:26]} 2. e4 {[%emt 0:05:08]} c6 {[%emt 0:01:28]} 3. c4 {[%emt 0:04:07]} d5 {[%emt 0:00:13]} 4. cxd5 {[%emt 0:02:10]} cxd5 {[%emt 0:00:05]} 5. exd5 {[%emt 0:00:09]} Nf6 {[%emt 0:00:18]} 6. Nc3 {[%emt 0:01:48]} g6 {[%emt 0:05:59]} 7. Qb3 {[%emt 0:11:42]} Bg7 {[%emt 0:04:52]} 8. g3 {[%emt 0:04:25]} O-O {[%emt 0:07:25]} 9. Bg2 {[%emt 0:00:37]} Nbd7 {[%emt 0:09:08]} 10. Nge2 {[%emt 0:06:13]} Ne8 {[%emt 0:00:07]} 11. O-O {[%emt 0:02:20]} Nd6 {[%emt 0:00:05]} 12. Bf4 {[%emt 0:04:21]} Nf6 {[%emt 0:00:08]} 13. Be5 {[%emt 0:02:13]} Bf5 {[%emt 0:00:18]} 14. Rfd1 {[%emt 0:06:43]} Qa5 {[%emt 0:01:34]} 15. Na4 {[%emt 0:17:01]} Rac8 {[%emt 0:03:17]} 16. Nc5 {[%emt 0:04:33]} b5 {[%emt 0:02:54]} 17. a4 {[%emt 0:03:43]} Nc4 {[%emt 0:00:23]} 18. axb5 {[%emt 0:01:52]} Qxb5 {[%emt 0:00:12]} 19. Qxb5 {[%emt 0:00:44]} axb5 {[%emt 0:00:04]} 20. b4 {[%emt 0:00:17]} Rfd8 {[%emt 0:06:49]} 21. Ra7 {[%emt 0:09:35]} Kf8 {[%emt 0:02:50]} 22. Nc3 {[%emt 0:07:13]} Nxe5 {[%emt 0:00:20]} 23. dxe5 {[%emt 0:00:03]} Nd7 {[%emt 0:00:14]} 24. f4 {[%emt 0:02:10]} Nxc5 {[%emt 0:00:05]} 25. bxc5 {[%emt 0:00:03]} Rxc5 {[%emt 0:00:08]} 26. Ne4 {[%emt 0:00:50]} Rc4 {[%emt 0:00:06]} 27. d6 {[%emt 0:00:53]} Kg8 {[%emt 0:02:32]} 28. Ng5 {[%emt 0:01:01]} Rc5 {[%emt 0:04:03]} 29. Rxe7 {[%emt 0:01:38]} f6 {[%emt 0:00:04]} 30. exf6 {[%emt 0:01:22]} Bxf6 {[%emt 0:00:07]} 31. Bd5+ {[%emt 0:00:26]} Rxd5 {[%emt 0:00:43]} 32. Rxd5 {[%emt 0:00:01]} b4 {[%emt 0:01:26]} 33. Nxh7 {[%emt 0:00:31]} Bg7 {[%emt 0:00:11]} 34. Ng5 {[%emt 0:00:54]} b3 {[%emt 0:00:27]} 35. Rb5 {[%emt 0:00:19]} Bd4+ {[%emt 0:00:53]} 36. Kg2 {[%emt 0:00:12]} b2 {[%emt 0:00:29]} 37. Reb7 {[%emt 0:00:51]} b1=Q {[%emt 0:00:11]} 38. Rxb1 {[%emt 0:00:03]} Bxb1 {[%emt 0:00:05]} 39. Rxb1 {[%emt 0:00:06]} Rxd6 {[%emt 0:00:04]} 40. Rd1 {[%emt 0:00:18]} Bc5 {[%emt 0:00:24]} 41. Rxd6 {[%emt 0:00:26]} Bxd6 {[%emt 0:00:04]} 42. Kf3 {[%emt 0:00:32]} Kg7 {[%emt 0:00:04]} 43. Kg4 {[%emt 0:01:01]} Bb8 {[%emt 0:00:07]} 44. Ne4 {[%emt 0:01:05]} Kh6 {[%emt 0:00:06]} 45. f5 {[%emt 0:00:31]} gxf5+ {[%emt 0:00:03]} 46. Kxf5 {[%emt 0:00:04]} Kh5 {[%emt 0:00:01]} 47. g4+ {[%emt 0:00:33]} Kh6 {[%emt 0:00:16]} 48. g5+ {[%emt 0:00:24]} Kg7 {[%emt 0:00:03]} 49. h4 {[%emt 0:00:12]} Ba7 {[%emt 0:00:03]} 50. h5 {[%emt 0:00:18]} Be3 {[%emt 0:00:02]} 51. Nf6 {[%emt 0:01:41]} Bc1 {[%emt 0:00:12]} 52. h6+ {[%emt 0:00:15]} Kh8 {[%emt 0:00:02]} 53. Ng4 {[%emt 0:00:19]} Kg8 {[%emt 0:00:31]} 54. Kg6 {[%emt 0:00:18]} Kh8 {[%emt 0:00:22]} 55. h7 {[%emt 0:00:29]} 1-0

[Event "10th Uppsala Young Champions 2023"]
[Site "Uppsala"]
[Date "2023.10.31"]
[Round "7.4"]
[White "Omarsson, Adam"]
[Black "Oksendal, Martin"]
[Result "1-0"]
[ECO "E56"]
[WhiteElo "1946"]
[BlackElo "2123"]
[Annotator "NA RC"]
[PlyCount "45"]
[EventDate "2023.10.27"]
[EventType "swiss"]
[EventCountry "SWE"]
[SourceTitle "playchess.com"]
[Source "ChessBase"]
[SourceQuality "1"]
[TimeControl "5400+30"]

1. d4 {[%emt 0:00:03]} Nf6 {[%emt 0:00:30]} 2. c4 {[%emt 0:00:12]} e6 {[%emt 0:00:13]} 3. Nc3 {[%emt 0:00:17]} Bb4 {[%emt 0:00:17]} 4. e3 {[%emt 0:00:18]} O-O {[%emt 0:00:06]} 5. Bd3 {[%emt 0:00:12]} d5 {[%emt 0:00:14]} 6. Nf3 {[%emt 0:00:25]} dxc4 {[%emt 0:00:10]} 7. Bxc4 {[%emt 0:00:08]} c5 {[%emt 0:00:03]} 8. O-O {[%emt 0:00:16]} Nc6 {[%emt 0:00:06]} 9. a3 {[%emt 0:03:53]} Ba5 {[%emt 0:00:12]} 10. Qd3 {[%emt 0:10:46]} Qe7 {[%emt 0:05:18]} 11. Ne4 {[%emt 0:07:09]} Nxe4 {[%emt 0:13:02]} 12. Qxe4 {[%emt 0:00:05]} Bc7 {[%emt 0:05:45]} 13. dxc5 {[%emt 0:05:29]} Qxc5 {[%emt 0:00:48]} 14. b4 {[%emt 0:00:10]} Qe7 {[%emt 0:04:09]} 15. Bb2 {[%emt 0:02:15]} Bd7 {[%emt 0:11:07]} 16. Rfd1 {[%emt 0:03:33]} a6 {[%emt 0:04:45]} 17. Rxd7 {[%emt 0:07:09]} Qxd7 {[%emt 0:00:23]} 18. Ng5 {[%emt 0:00:05]} g6 {[%emt 0:03:33]} 19. Nxh7 {[%emt 0:00:06]} Bd8 {[%emt 0:18:06]} 20. Nf6+ {[%emt 0:00:10]} Bxf6 {[%emt 0:00:01]} 21. Bxf6 {[%emt 0:00:07]} Ne7 {[%emt 0:00:22]} 22. Qh4 {[%emt 0:00:07]} Nf5 {[%emt 0:00:11]} 23. Qh8# {[%emt 0:00:05]} 1-0